bitfinex/quotes_ETHUSD_20250823
["timestamp","ask_amount","ask_price","bid_price","bid_amount"]
[1755923002855,3.7144,4705.6,4705.5,0.7584]
[1755923003043,3.7144,4705.6,4705.5,0.86501]
[1755923003044,0.1064,4705.6,4705.5,0.86501]
[1755923003242,0.002,4705.8,4705.5,0.86501]
[1755923003243,3.609,4705.8,4705.5,0.86501]
[1755923003542,3.609,4705.8,4705.6,0.4517]
[1755923003743,3.609,4705.8,4705.7,0.3057]
[1755923003744,0.002,4705.8,4705.7,0.3057]
[1755923004056,0.002,4705.8,4705.7,1.27711]
[1755923004256,0.002,4705.8,4705.7,1.426322]
[1755923004823,0.002,4705.8,4705.7,2.10757282]
[1755923005128,0.002,4705.8,4705.7,2.086322]
[1755923007467,0.002,4705.8,4705.7,5.21397282]
[1755923007635,0.002,4705.8,4705.7,5.192722]
[1755923008033,0.002,4705.8,4705.7,2.192722]
[1755923009658,0.002,4705.8,4705.7,1.532722]
[1755923013175,0.002,4705.8,4705.7,2.086322]
[1755923013463,0.002,4705.8,4705.7,2.192722]
[1755923015058,0.002,4705.8,4705.7,1.532722]
[1755923015257,0.002,4705.8,4705.7,1.081022]
[1755923017991,0.002,4705.8,4705.7,2.21397282]
[1755923020056,0.002,4705.8,4705.7,2.192722]
[1755923025682,0.002,4705.8,4705.7,2.39064372]
[1755923025994,0.002,4705.8,4705.7,5.99564372]
[1755923026156,0.002,4705.8,4705.7,5.99564352]
[1755923027979,0.002,4705.8,4705.7,8.88924352]
[1755923028190,0.002,4706.3,4705.8,3.66]
[1755923028369,0.002,4706.3,4706.2,0.3078]
[1755923028603,0.002,4706.3,4706.2,4.21712152]
[1755923028781,0.002,4706.3,4706.2,4.96222252]
[1755923031175,0.3064,4706.3,4706.2,0.38942252]
[1755923031377,0.7347,4706.3,4706.2,4.77595257]
[1755923032894,0.3064,4706.3,4706.2,4.77595257]
[1755923033205,0.002,4706.3,4706.2,4.77595257]
[1755923033505,0.002,4706.3,4706.2,5.08375257]
[1755923034197,0.002,4706.3,4706.2,4.77595257]
[1755923034808,0.002,4706.3,4706.2,4.77672591]
[1755923036613,0.002,4706.3,4706.2,4.57803105]
[1755923038795,0.002,4706.3,4706.2,4.88583105]
[1755923040018,0.002,4706.3,4706.2,5.97433105]
[1755923040406,0.002,4706.3,4706.2,5.54583105]
[1755923040707,0.002,4706.3,4706.2,4.57703105]
[1755923040708,0.3064,4706.3,4706.2,4.57703105]
[1755923041610,0.002,4706.3,4706.2,4.88483105]
[1755923041814,0.002,4706.3,4706.2,5.54483105]
[1755923042325,0.002,4706.3,4706.2,8.97333105]
[1755923042489,0.042,4706.8,4706.3,3.66]
[1755923042684,0.042,4706.8,4706.7,0.9678]
[1755923043012,0.042,4706.8,4706.7,4.5708]
[1755923043215,0.042,4706.8,4706.7,5.0205463]
[1755923043407,0.042,4706.8,4706.7,5.190784]
[1755923045093,0.042,4706.8,4706.7,8.190784]
[1755923045320,0.042,4706.8,4706.7,9.2240502]
[1755923049529,0.042,4706.8,4706.7,9.49019023]
[1755923049890,0.002,4707.4,4707.3,9.6834345]
[1755923050093,0.002,4707.4,4707.3,18.3326345]
[1755923050410,0.002,4707.4,4707.3,20.78464058]
[1755923050929,0.002,4707.4,4707.3,16.75414058]
[1755923051102,0.002,4707.4,4707.3,20.44120858]
[1755923051431,0.002,4707.4,4707.3,20.86970858]
[1755923053124,0.002,4707.4,4707.3,20.44120858]
[1755923053625,0.002,4707.4,4707.3,20.86970858]
[1755923053991,0.002,4707.4,4707.3,4.81577408]
[1755923054330,0.002,4707.4,4707.3,6.394268]
[1755923054525,0.3064,4707.4,4707.3,2.484468]
[1755923054698,0.002,4707.4,4707.3,6.086468]
[1755923054894,0.002,4707.4,4707.3,6.394268]
[1755923055134,0.002,4707.4,4707.3,7.93603825]
[1755923056122,0.002,4707.4,4707.3,8.36453825]
[1755923057724,0.002,4707.4,4707.3,7.82963825]
[1755923057906,0.002,4707.4,4707.3,11.36453825]
[1755923060696,0.002,4707.4,4707.3,7.76253825]
[1755923060900,0.002,4707.4,4707.3,11.36353825]
[1755923062405,0.002,4707.4,4707.3,10.93503825]
[1755923062807,0.002,4707.4,4707.3,11.39143825]
[1755923065833,0.022,4707.8,4707.4,3.66]
[1755923066029,0.022,4707.8,4707.7,12.9820345]
[1755923066364,0.022,4707.8,4707.7,16.6884345]
[1755923066534,0.022,4707.8,4707.7,16.7734875]
[1755923066739,0.022,4707.8,4707.7,17.2298875]
[1755923066938,0.022,4707.8,4707.7,19.3717655]
[1755923067666,0.002,4707.9,4707.8,3.66]
[1755923067876,0.002,4707.9,4707.8,5.8822676]
[1755923068036,0.002,4707.9,4707.8,6.31742626]
[1755923068362,0.002,4708.3,4707.8,4.60643]
[1755923068535,0.11034462,4711.8,4708.3,0.66]
[1755923068733,0.4543,4711.5,4709.8,0.66]
[1755923068930,0.11034462,4711.8,4710.8,0.66]
[1755923068931,0.4543,4711.0,4710.8,0.66]
[1755923069131,0.7661,4710.9,4710.8,0.66]
[1755923069347,0.7661,4710.9,4710.8,6.09045052]
[1755923069541,0.7661,4710.9,4710.8,6.19685052]
[1755923069769,0.7661,4710.9,4710.8,6.83441152]
[1755923070063,0.7661,4710.9,4710.8,6.636961]
[1755923070265,0.7661,4710.9,4710.8,8.40017387]
[1755923073045,0.7681,4710.9,4710.8,8.40017387]
[1755923073238,0.7681,4710.9,4710.8,8.39980594]
[1755923073677,0.7681,4710.9,4710.8,8.41980594]
[1755923074375,0.002,4710.9,4710.8,8.41980594]
[1755923074576,0.3138,4710.9,4710.8,8.41980594]
[1755923075169,0.002,4710.9,4710.8,8.41980594]
[1755923075472,0.002,4710.9,4710.8,8.71840594]
[1755923075978,0.002,4710.9,4710.8,12.53466869]
[1755923076174,0.002,4711.8,4710.8,12.53466869]
[1755923076175,0.002,4711.8,4711.0,0.66]
[1755923076376,0.002,4711.8,4711.7,13.0884345]
[1755923076546,0.002,4711.8,4711.7,18.51623989]
[1755923076745,0.002,4711.8,4711.7,18.97263989]
[1755923076954,0.002,4711.8,4711.7,18.51623989]
[1755923077970,0.002,4711.8,4711.7,18.97053989]
[1755923078169,0.002,4711.8,4711.7,20.91323388]
[1755923078353,0.002,4711.8,4711.7,21.36963388]
[1755923079163,0.002,4711.8,4711.7,21.17282849]
[1755923079484,0.002,4711.8,4711.7,21.36889448]
[1755923079783,0.002,4712.3,4711.7,20.91236629]
[1755923079970,0.02,4713.8,4711.7,20.91236629]
[1755923079971,0.4543,4713.4,4712.3,3.66]
[1755923080151,0.4543,4713.4,4712.7,13.0884345]
[1755923080350,0.4543,4713.4,4712.7,18.5143723]
[1755923080553,0.4543,4713.4,4712.7,18.9686723]
[1755923081047,0.4543,4713.4,4712.7,15.0720723]
[1755923081250,0.3338,4712.8,4712.7,20.17727953]
[1755923081478,0.7881,4712.8,4712.7,20.17727953]
[1755923082182,0.7881,4712.8,4712.7,11.15384503]
[1755923083987,0.022,4712.8,4712.7,20.17727953]
[1755923084158,0.022,4712.8,4712.7,20.89973416]
[1755923084487,0.022,4712.8,4712.7,21.19833416]
[1755923084656,0.022,4712.8,4712.7,20.89973416]
[1755923085082,0.022,4712.8,4712.7,20.53714228]
[1755923085385,0.3338,4712.8,4712.7,20.53714228]
[1755923085585,0.3338,4712.8,4712.7,20.17727953]
[1755923085753,0.7881,4712.8,4712.7,20.17727953]
[1755923087605,0.7881,4712.8,4712.7,7.55584503]
[1755923087765,0.7881,4712.8,4712.7,5.9846378]
[1755923087972,0.7881,4712.8,4712.7,6.6446378]
[1755923088210,0.7881,4712.8,4712.7,5.9846378]
[1755923088409,0.7881,4712.8,4712.7,5.98420458]
[1755923088818,0.7881,4712.8,4712.7,6.64420458]
[1755923088969,0.7881,4712.8,4712.7,3.71262504]
[1755923089164,0.7881,4712.8,4712.7,6.64420458]
[1755923089961,0.022,4712.8,4712.7,6.64420458]
[1755923090404,0.8001,4712.8,4712.7,3.04820458]
[1755923090706,0.8001,4712.8,4712.7,5.52990458]
[1755923091481,0.8001,4712.8,4712.7,5.53014552]
[1755923092878,0.8001,4712.8,4712.7,1.93414552]
[1755923093120,0.8001,4712.8,4712.7,5.53214552]
[1755923097385,0.8001,4712.8,4712.7,5.53324033]
[1755923098019,0.8001,4712.8,4712.7,5.53324848]
[1755923099157,0.3273,4712.8,4712.7,6.19124848]
[1755923099336,0.3273,4712.8,4712.7,6.81047333]
[1755923099491,0.072245,4712.8,4712.7,6.81047333]
[1755923100128,0.545045,4712.8,4712.7,6.81047333]
[1755923100724,0.545045,4712.8,4712.7,0.30345491]
[1755923101015,0.651445,4712.8,4712.7,0.19705491]
[1755923105136,0.545045,4712.8,4712.7,0.19705491]
[1755923105432,0.545045,4712.8,4712.3,0.001]
[1755923105433,0.651445,4712.8,4712.3,0.001]
[1755923105599,0.651445,4712.8,4712.4,0.19730787]
[1755923105798,0.178645,4712.8,4712.5,0.19730787]
[1755923106045,0.4728,4712.7,4712.6,0.19731152]
[1755923106241,0.7781,4712.7,4712.6,0.19731152]
[1755923108657,0.3053,4712.7,4712.6,0.19731152]
[1755923108865,0.002,4712.8,4712.6,0.19731152]
[1755923109031,0.002,4712.8,4712.7,0.21853077]
[1755923109625,0.002,4712.8,4712.7,0.19731152]
[1755923111525,0.002,4712.8,4712.7,0.19727186]
[1755923111943,0.002,4712.8,4712.7,0.48807186]
[1755923112667,0.3073,4712.8,4712.7,0.19727186]
[1755923112869,0.7801,4712.8,4712.7,0.19727186]
[1755923114179,0.8865,4712.8,4712.7,0.19727186]
[1755923114538,0.8865,4712.8,4712.7,0.19735132]
[1755923116888,0.4137,4712.8,4712.7,0.19735132]
[1755923117044,0.002,4712.8,4712.7,0.48815132]
[1755923117671,0.3073,4712.8,4712.7,0.19735132]
[1755923118751,0.002,4712.8,4712.7,0.19735132]
[1755923118948,0.002,4712.8,4712.7,0.48755132]
[1755923119981,0.002,4712.8,4712.7,0.95365132]
[1755923122780,0.002,4712.8,4712.7,0.48778545]
[1755923123078,0.7705,4712.8,4712.7,0.19758545]
[1755923123281,0.311,4712.8,4712.7,0.19758545]
[1755923123481,0.7705,4712.8,4712.7,0.19758545]
[1755923123682,0.311,4712.8,4712.6,0.001]
[1755923123883,0.311,4712.8,4712.7,0.19763619]
[1755923123884,0.002,4712.8,4712.7,0.19763619]
[1755923124062,0.002,4712.8,4712.7,0.48783619]
[1755923124382,0.002,4712.8,4712.7,0.9751389]
[1755923124586,0.002,4712.8,4712.7,0.97513067]
[1755923125893,0.311,4712.8,4712.7,0.19761142]
[1755923126188,0.7705,4712.8,4712.7,0.19761142]
[1755923127084,0.8769,4712.8,4712.7,0.19761142]
[1755923129589,0.4174,4712.8,4712.7,0.19761142]
[1755923130082,0.4174,4712.8,4712.7,0.95391142]
[1755923130083,0.002,4712.8,4712.7,0.95391142]
[1755923130519,0.002,4712.8,4712.7,1.06014256]
[1755923130855,0.002,4712.8,4712.7,1.08136181]
[1755923132398,0.002,4712.8,4712.7,0.61526181]
[1755923132759,0.002,4712.8,4712.7,0.41765039]
[1755923132962,0.002,4712.8,4712.7,0.59431104]
[1755923133502,0.002,4712.8,4712.7,0.59417248]
[1755923134693,0.002,4712.8,4712.7,1.06027248]
[1755923135265,0.002,4712.8,4712.7,1.74149173]
[1755923135457,0.002,4712.8,4712.7,1.82667248]
[1755923139164,0.002,4712.8,4712.7,1.74149173]
[1755923139492,0.002,4712.8,4712.7,1.82667248]
[1755923139689,0.002,4712.8,4712.7,8.44389173]
[1755923139994,0.002,4712.8,4712.7,8.42267248]
[1755923140580,0.022,4713.8,4712.8,3.66]
[1755923140908,0.022,4713.8,4713.7,0.2902]
[1755923141199,0.022,4713.8,4713.7,0.48794134]
[1755923141403,0.022,4713.8,4713.7,0.50915609]
[1755923141971,0.022,4713.8,4713.7,0.50870208]
[1755923142380,0.022,4713.8,4713.7,0.61510208]
[1755923142587,0.022,4713.8,4713.7,1.08272229]
[1755923143404,0.33193235,4714.9,4713.8,1.17438223]
[1755923143705,0.02,4715.8,4714.7,0.2902]
[1755923143939,0.02,4715.8,4714.7,6.47988733]
[1755923144217,0.02,4715.8,4714.7,6.94598733]
[1755923144522,0.4795,4715.8,4714.7,7.88292951]
[1755923146720,0.02,4715.8,4714.8,0.66]
[1755923147019,0.02,4715.8,4715.7,0.3966]
[1755923147176,0.02,4715.8,4715.7,5.81888733]
[1755923147379,0.02,4715.8,4715.7,7.76921951]
[1755923147780,0.02,4715.8,4715.7,7.30311951]
[1755923147979,0.329,4715.8,4715.7,5.52868733]
[1755923148179,0.7885,4715.8,4715.7,1.93468733]
[1755923148478,0.7885,4715.8,4715.7,1.82828733]
[1755923149600,0.7885,4715.8,4715.7,0.19728733]
[1755923150312,0.8949,4715.8,4715.7,0.19728733]
[1755923150986,0.8949,4715.8,4715.7,0.1958962]
[1755923151386,14.17985987,4715.8,4715.7,0.1958962]
[1755923151703,13.5783345,4715.8,4715.7,0.1958962]
[1755923152109,13.91019409,4715.8,4715.7,0.1958962]
[1755923152637,3.66,4715.7,4714.0,0.1064]
[1755923152935,9.0234345,4715.0,4714.1,0.19590981]
[1755923153082,9.0234345,4715.0,4714.2,0.19590981]
[1755923153282,0.4371,4714.9,4714.3,0.19590981]
[1755923153484,0.4371,4714.9,4714.4,0.19590981]
[1755923153725,0.1064,4714.1,4713.8,0.02]
[1755923153885,0.1064,4714.1,4713.9,0.19595593]
[1755923154086,0.1064,4714.1,4714.0,0.19595593]
[1755923154323,0.4074,4714.1,4714.0,0.19595593]
[1755923154692,0.8445,4714.1,4714.0,0.19595593]
[1755923156608,0.4074,4714.1,4714.0,0.19595593]
[1755923156853,0.8445,4714.1,4714.0,0.19595593]
[1755923157739,0.4074,4714.1,4714.0,0.19595593]
[1755923159038,0.8445,4714.1,4714.0,0.19595593]
[1755923160043,0.8445,4714.1,4713.8,0.02]
[1755923160243,0.4074,4714.1,4713.9,0.19619434]
[1755923160436,0.4371,4714.0,4713.8,0.02]
[1755923160631,0.301,4713.9,4713.8,0.02]
[1755923160942,0.7381,4713.9,4713.8,0.21631309]
[1755923163847,0.301,4713.9,4713.8,0.21631309]
[1755923164048,0.7381,4713.9,4713.8,0.21631309]
[1755923164259,1.12255,4713.9,4713.8,0.21631309]
[1755923164943,0.7381,4713.9,4713.8,0.21631309]
[1755923165930,1.07008409,4713.9,4713.8,0.21631309]
[1755923166646,0.7381,4713.9,4713.8,0.21631309]
[1755923167050,9.7615345,4713.9,4713.8,0.21631309]
[1755923167236,12.7615345,4713.9,4713.8,0.21631309]
[1755923168355,12.7615345,4713.9,4713.8,0.21601921]
[1755923168936,12.7615345,4713.9,4713.8,0.02]
[1755923169141,12.7615345,4713.9,4713.8,0.21595923]
[1755923170253,12.7615345,4713.9,4713.8,0.02]
[1755923171159,12.7615345,4713.9,4712.8,0.021]
[1755923171160,0.66,4713.7,4712.8,0.021]
[1755923171366,12.9844345,4712.9,4712.8,0.021]
[1755923171530,18.70127031,4712.9,4712.8,0.021]
[1755923171722,19.13837031,4712.9,4712.8,0.021]
[1755923173760,2.12188083,4712.8,4712.6,0.001]
[1755923173923,11.80549544,4712.4,4712.3,0.001]
[1755923174119,13.6878345,4712.4,4712.3,0.001]
[1755923174355,9.4308345,4712.4,4712.3,0.001]
[1755923174557,4.33652659,4712.4,4712.3,0.001]
[1755923176329,7.99652659,4712.4,4712.3,0.001]
[1755923176644,8.32722659,4712.4,4712.3,0.001]
[1755923176835,7.3381,4712.4,4712.3,0.001]
[1755923178658,3.7381,4712.4,4712.3,0.001]
[1755923178979,7.3371,4712.4,4712.3,0.001]
[1755923181192,7.3361,4712.4,4712.3,0.001]
[1755923183782,6.899,4712.4,4712.3,0.001]
[1755923184581,0.33212991,4712.5,4712.3,0.3069]
[1755923184786,1.631,4712.7,4712.3,0.3069]
[1755923184787,1.631,4712.7,4712.4,0.19625678]
[1755923184962,3.596,4712.6,4712.5,0.19625678]
[1755923185669,3.596,4712.6,4712.5,0.50215678]
[1755923185872,3.596,4712.6,4712.5,0.95185678]
[1755923186062,3.596,4712.8,4712.5,0.95185678]
[1755923186263,3.597,4712.9,4712.6,0.64595678]
[1755923186487,3.597,4712.9,4712.8,0.3059]
[1755923186658,3.597,4712.9,4712.8,0.95185678]
[1755923186993,3.7034,4712.9,4712.8,0.95198339]
[1755923187299,1.632,4713.4,4712.8,0.95198339]
[1755923187497,3.7034,4713.3,4712.9,0.64608339]
[1755923187792,0.1064,4713.3,4713.2,0.3059]
[1755923187975,3.7034,4713.5,4713.2,0.50228062]
[1755923188147,3.7034,4713.5,4713.3,0.64608062]
[1755923188352,3.7034,4713.5,4713.4,0.95198062]
[1755923188955,0.1064,4713.5,4713.4,0.95198062]
[1755923189655,0.002,4713.6,4713.4,1.05838062]
[1755923189849,0.002,4713.6,4713.4,0.4123]
[1755923190053,0.002,4713.6,4713.5,0.64624651]
[1755923190286,0.002,4713.6,4713.5,0.95214651]
[1755923191772,0.002,4713.6,4713.5,1.22120116]
[1755923194397,0.002,4713.6,4713.5,1.02465465]
[1755923194589,0.002,4713.6,4713.5,1.22100604]
[1755923195983,0.002,4713.6,4713.5,1.22096488]
[1755923197257,0.002,4713.6,4713.5,0.77126488]
[1755923197458,0.3145,4713.6,4713.5,0.19631023]
[1755923197869,0.7511,4713.6,4713.5,0.19631023]
[1755923199060,0.7511,4713.6,4713.5,0.19628485]
[1755923199461,0.3145,4713.6,4713.5,0.19628485]
[1755923199756,0.7511,4713.6,4713.5,0.19628485]
[1755923202094,0.7511,4713.6,4713.5,0.19627548]
[1755923202501,1.19835,4713.6,4713.5,0.19627548]
[1755923205079,1.19835,4713.6,4712.6,0.1064]
[1755923205286,0.1064,4713.3,4712.7,0.19646869]
[1755923205489,0.1064,4713.3,4712.8,0.19646869]
[1755923205710,0.1064,4713.3,4713.2,0.3059]
[1755923205897,0.1064,4713.3,4713.2,0.50239149]
[1755923207120,0.1064,4713.3,4713.2,0.95209149]
[1755923207619,0.1064,4713.3,4713.2,0.50239149]
[1755923207932,0.1064,4713.3,4713.2,0.95209149]
[1755923209308,0.1064,4713.3,4713.2,0.50239149]
[1755923212818,0.1064,4713.3,4713.2,0.19649149]
[1755923212988,0.4058,4713.3,4713.2,0.19649149]
[1755923213516,0.1064,4713.3,4713.2,0.19649149]
[1755923213823,0.4058,4713.3,4713.2,0.19649149]
[1755923213989,0.876,4713.3,4713.2,0.19649149]
[1755923214315,0.876,4713.3,4712.6,0.1074]
[1755923214519,0.4058,4713.3,4712.7,0.19734091]
[1755923214720,0.4058,4713.3,4712.8,0.19734091]
[1755923214917,0.4058,4713.3,4712.9,0.19734079]
[1755923215116,0.4058,4713.3,4713.0,0.19734079]
[1755923215418,0.4702,4713.2,4713.1,0.19734079]
[1755923215619,0.2994,4713.2,4713.1,0.19734079]
[1755923216033,0.1064,4713.3,4713.1,0.19734079]
[1755923216220,0.1064,4713.3,4712.7,0.4495]
[1755923216221,0.1064,4713.3,4713.2,0.19734079]
[1755923216394,0.4058,4713.3,4713.2,0.19734079]
[1755923216596,0.876,4713.3,4713.2,0.19734079]
[1755923217241,0.1064,4713.3,4713.2,0.51064079]
[1755923217400,0.002,4713.6,4713.2,2.66090961]
[1755923217599,0.002,4714.1,4713.3,0.8027298]
[1755923217927,0.002,4714.1,4714.0,0.3133]
[1755923218228,0.002,4714.1,4714.0,0.96038206]
[1755923218998,0.002,4714.1,4714.0,1.04534706]
[1755923220010,0.002,4714.1,4714.0,0.96038206]
[1755923220233,0.002,4714.1,4714.0,1.04534706]
[1755923220397,0.002,4714.1,4714.0,1.04501551]
[1755923221345,0.002,4714.6,4714.0,1.04501551]
[1755923221553,0.002,4714.6,4714.1,2.74175206]
[1755923221839,0.002,4714.6,4714.5,0.3133]
[1755923222002,0.002,4714.6,4714.5,0.51055051]
[1755923222198,0.002,4714.6,4714.5,0.96005051]
[1755923222610,0.002,4714.6,4714.5,0.95955601]
[1755923222810,0.002,4714.6,4714.5,1.26501177]
[1755923223028,0.002,4714.6,4714.5,1.2650024]
[1755923223232,0.002,4714.6,4714.5,1.26496429]
[1755923226303,0.002,4714.6,4714.5,1.34990829]
[1755923227002,0.002,4714.6,4714.5,1.37111944]
[1755923227521,0.002,4714.6,4714.5,1.47751944]
[1755923227726,0.002,4715.3,4714.5,1.47751944]
[1755923227935,0.002,4715.3,4715.2,0.1064]
[1755923228239,0.002,4715.3,4715.2,2.24740853]
[1755923228437,0.002,4715.3,4715.2,2.35380853]
[1755923230519,0.002,4715.3,4715.2,5.94780853]
[1755923231641,0.002,4715.3,4715.2,5.9466979]
[1755923231959,0.002,4715.3,4715.2,6.58631769]
[1755923232142,0.002,4715.3,4715.2,0.1955979]
[1755923232143,0.7716,4715.3,4715.2,0.1955979]
[1755923232304,0.7716,4715.3,4715.2,0.19567567]
[1755923232305,0.878,4715.3,4715.2,0.19567567]
[1755923232502,0.878,4715.3,4715.2,0.19575072]
[1755923233910,0.002,4715.3,4715.2,6.18255072]
[1755923234143,0.002,4715.3,4715.2,8.02998159]
[1755923234307,0.002,4715.3,4715.2,9.09109351]
[1755923234512,0.002,4715.3,4715.2,9.12009351]
[1755923235913,0.002,4715.3,4715.2,5.49809351]
[1755923236245,0.002,4715.3,4715.2,12.11909351]
[1755923236543,0.022,4715.8,4715.3,4.17120592]
[1755923236707,0.022,4715.8,4715.7,0.9733]
[1755923236909,0.022,4715.8,4715.7,4.79105072]
[1755923237236,0.022,4715.8,4715.7,1.61855072]
[1755923237537,0.022,4715.8,4715.7,5.24055072]
[1755923237739,0.002,4716.3,4715.8,0.66]
[1755923237948,0.002,4716.3,4716.2,0.3133]
[1755923238129,0.002,4716.3,4716.2,2.13864751]
[1755923238339,0.002,4716.3,4716.2,3.27035102]
[1755923238654,0.002,4716.3,4716.2,3.35525902]
[1755923238819,0.002,4716.3,4716.2,3.69078492]
[1755923239549,0.002,4716.3,4716.2,3.66958141]
[1755923240137,0.002,4716.3,4716.2,7.28958141]
[1755923240951,0.002,4716.3,4716.2,2.24559846]
[1755923241113,0.002,4716.3,4716.2,5.86559846]
[1755923241462,0.002,4716.3,4716.2,7.42857363]
[1755923241831,0.002,4716.3,4716.2,3.80857363]
[1755923242012,0.002,4716.3,4716.2,7.47277714]
[1755923242338,0.002,4716.3,4716.2,7.45157363]
[1755923242917,0.002,4716.3,4716.2,3.80857363]
[1755923243132,0.002,4716.3,4716.2,7.47277714]
[1755923243418,0.002,4716.3,4716.2,10.45157363]
[1755923244223,0.002,4716.3,4716.2,10.55797363]
[1755923244548,0.002,4716.3,4716.2,10.55697363]
[1755923245519,0.002,4716.3,4716.2,6.91497363]
[1755923245949,0.002,4716.3,4716.2,10.55797363]
[1755923246447,0.022,4716.8,4716.3,3.66]
[1755923246650,0.022,4716.8,4716.7,0.3977]
[1755923246979,0.022,4716.8,4716.7,4.23586456]
[1755923247149,0.774,4716.8,4716.7,4.02746656]
[1755923247329,0.022,4716.8,4716.7,4.02746656]
[1755923247523,0.022,4716.8,4716.7,0.38646656]
[1755923247745,0.4535,4717.3,4716.7,4.02746656]
[1755923247916,0.4535,4717.3,4716.8,0.59791122]
[1755923248123,0.002,4717.3,4717.2,0.1056]
[1755923248316,0.3025,4717.3,4717.2,5.57176456]
[1755923248725,0.754,4717.3,4717.2,5.57176456]
[1755923250049,0.754,4717.3,4717.2,5.3766]
[1755923250251,0.754,4717.3,4717.2,5.56929985]
[1755923252658,0.754,4717.3,4717.2,5.56729985]
[1755923252955,0.754,4717.3,4717.2,1.93129985]
[1755923253142,0.754,4717.3,4717.2,5.56629985]
[1755923254766,0.754,4717.3,4717.2,1.93129985]
[1755923255065,0.754,4717.3,4717.2,5.56629985]
[1755923255269,0.754,4717.3,4717.2,5.56429985]
[1755923255432,0.754,4717.3,4717.2,1.93129985]
[1755923255638,0.754,4717.3,4717.2,5.45769985]
[1755923255838,0.754,4717.3,4717.2,1.82569985]
[1755923256140,0.754,4717.3,4717.2,5.45869985]
[1755923257940,0.754,4717.3,4717.2,0.19569985]
[1755923258268,0.754,4717.3,4717.2,3.82669985]
[1755923259174,0.754,4717.3,4717.2,3.82704309]
[1755923259765,0.754,4717.3,4717.2,3.82699566]
[1755923259970,0.754,4717.3,4717.2,3.82699146]
[1755923262298,0.002,4717.3,4717.2,0.19599146]
[1755923262445,0.002,4717.3,4717.2,4.11329146]
[1755923262652,0.002,4717.3,4717.2,4.21889146]
[1755923264044,0.002,4717.3,4717.2,0.59289146]
[1755923264365,0.002,4717.3,4717.2,4.21989146]
[1755923265163,0.002,4717.3,4717.2,4.22039416]
[1755923266181,0.1456,4717.8,4717.2,4.22039416]
[1755923267953,0.752,4717.7,4717.6,0.19649416]
[1755923268148,0.752,4717.7,4717.5,3.623]
[1755923268351,0.752,4717.7,4717.6,0.19649815]
[1755923268900,0.752,4717.7,4717.6,0.19649726]
[1755923269679,0.1456,4717.8,4717.6,0.19649726]
[1755923269884,0.1456,4717.8,4717.7,0.19649726]
[1755923270060,0.439,4717.8,4717.7,0.19649726]
[1755923270687,0.8738,4717.8,4717.7,0.19649726]
[1755923272346,0.439,4717.8,4717.7,3.81549726]
[1755923272550,0.8738,4717.8,4717.7,3.81549726]
[1755923273961,0.8758,4717.8,4717.7,3.81549726]
[1755923274564,0.441,4717.8,4717.7,3.81549726]
[1755923277584,0.441,4717.8,4717.7,3.81570346]
[1755923277973,0.8758,4717.8,4717.7,3.81570346]
[1755923281575,15.34321736,4717.8,4717.7,0.19670346]
[1755923282274,13.22358533,4717.8,4717.7,0.19670346]
[1755923282579,3.0,4717.7,4716.7,0.001]
[1755923282786,3.0,4717.7,4716.8,0.19679086]
[1755923283098,3.0,4717.7,4716.7,0.001]
[1755923283099,0.4348,4717.6,4716.9,0.19679086]
[1755923283265,0.4348,4717.6,4717.0,0.19679086]
[1755923283469,0.4348,4717.6,4717.1,0.19679086]
[1755923283670,0.4348,4717.5,4717.2,0.19679086]
[1755923283873,3.042,4717.8,4717.3,0.19679086]
[1755923284092,0.8338,4717.4,4716.7,0.001]
[1755923284294,0.7282,4717.4,4716.8,0.19671613]
[1755923284468,0.7282,4717.4,4716.9,0.19671613]
[1755923284668,0.2934,4717.4,4717.0,0.19671613]
[1755923284997,0.4348,4717.3,4717.1,0.19671613]
[1755923285301,0.4348,4717.3,4717.2,0.19671613]
[1755923285594,0.1064,4716.8,4716.7,0.001]
[1755923285777,0.1064,4716.8,4716.7,0.49474782]
[1755923286913,0.1064,4716.8,4716.7,0.95364782]
[1755923287202,0.1056,4717.5,4716.8,0.02]
[1755923287514,0.1056,4717.5,4717.4,0.2971]
[1755923287670,0.1056,4717.5,4717.4,0.49374782]
[1755923289620,0.1476,4717.8,4717.4,0.95264782]
[1755923289772,0.1476,4717.8,4717.5,0.19664782]
[1755923289968,0.1476,4717.8,4717.7,0.2971]
[1755923290193,0.1476,4717.8,4717.7,0.49374782]
[1755923292600,0.1476,4717.8,4717.7,0.19664782]
[1755923294406,0.042,4717.8,4717.7,0.95264782]
[1755923294708,0.042,4717.8,4717.7,1.05806872]
[1755923295209,0.042,4717.8,4717.7,1.05802877]
[1755923295407,0.042,4717.8,4717.7,1.19720025]
[1755923297813,0.042,4717.8,4717.7,1.19711541]
[1755923299611,0.042,4717.8,4717.7,1.30271541]
[1755923301312,0.042,4717.8,4717.7,11.3316975]
[1755923301532,0.042,4717.8,4717.7,11.31050074]
[1755923302053,0.002,4718.3,4717.7,11.31050074]
[1755923302054,0.002,4718.3,4717.7,10.79050074]
[1755923302201,0.002,4718.3,4717.8,6.74604761]
[1755923302401,0.002,4718.3,4718.2,0.3999]
[1755923302629,0.002,4718.3,4718.2,2.22624393]
[1755923302833,0.002,4718.3,4718.2,2.68804393]
[1755923303014,0.002,4718.3,4718.2,2.70923845]
[1755923303336,0.002,4718.3,4718.2,3.58895266]
[1755923303737,0.002,4718.3,4718.2,3.39260873]
[1755923304039,0.002,4718.3,4718.2,13.5960807]
[1755923304239,0.002,4718.3,4718.2,13.57479226]